bitfinex-derivatives/quotes_ETHF0:USTF0_20250807
["timestamp","ask_amount","ask_price","bid_price","bid_amount"]
[1754589423408,42.2668,3827.6,3827.5,1.8189]
[1754589423611,42.2668,3827.6,3827.5,2.3049]
[1754589427405,41.8519,3827.6,3827.5,2.3049]
[1754589427605,40.8,3827.6,3827.5,2.3049]
[1754589433512,41.2818,3827.6,3827.5,2.3049]
[1754589433713,41.7199,3827.6,3827.5,2.3049]
[1754589434013,41.2818,3827.6,3827.5,2.3049]
[1754589434221,40.8,3827.6,3827.5,2.3049]
[1754589436016,19.3731,3828.2,3828.1,1.41326]
[1754589436222,1.3571,3828.2,3828.1,2.79716]
[1754589436622,42.6389,3828.2,3828.1,2.79716]
[1754589437026,42.6389,3828.2,3828.1,1.8124]
[1754589437225,42.6389,3828.2,3828.1,1.3583]
[1754589437226,43.1028,3828.2,3828.1,1.3583]
[1754589437524,43.1028,3828.2,3828.1,1.0627]
[1754589438320,43.1028,3828.2,3828.0,0.52237]
[1754589438522,1.9771,3828.1,3828.0,0.98977]
[1754589438821,2.3028,3828.1,3828.0,0.52237]
[1754589439022,1.8389,3828.1,3828.0,0.98977]
[1754589439218,1.5132,3828.1,3828.0,2.79717]
[1754589439414,1.8389,3828.1,3828.0,2.79717]
[1754589439721,1.0751,3828.1,3828.0,2.79717]
[1754589439918,0.5933,3828.1,3828.0,2.79717]
[1754589441918,1.4008,3828.1,3828.0,2.79717]
[1754589442115,1.8389,3828.1,3828.0,2.79717]
[1754589442318,40.8,3828.2,3828.0,2.79717]
[1754589442523,41.7199,3828.2,3828.1,2.2748]
[1754589445229,40.8,3828.2,3828.1,2.2748]
[1754589446430,41.2818,3828.2,3828.1,2.2748]
[1754589446826,41.7199,3828.2,3828.1,2.2748]
[1754589450432,41.7199,3828.2,3828.1,1.8124]
[1754589450635,41.7199,3828.2,3828.1,2.2748]
[1754589451334,40.8,3828.2,3828.1,2.2748]
[1754589452037,41.2818,3828.2,3828.1,2.2748]
[1754589452238,41.7199,3828.2,3828.1,2.2748]
[1754589452926,0.6444,3828.1,3828.0,0.52237]
[1754589453131,2.3028,3828.1,3828.0,0.98977]
[1754589454034,2.3028,3828.1,3828.0,2.33477]
[1754589454235,2.3028,3828.1,3828.0,2.79717]
[1754589454439,1.8389,3828.1,3828.0,2.79717]
[1754589455729,40.8,3828.2,3828.0,2.79717]
[1754589455938,40.8,3828.2,3828.1,0.8909]
[1754589456137,40.8,3828.2,3828.1,2.2748]
[1754589456831,41.7199,3828.2,3828.1,2.2748]
[1754589457432,41.7199,3828.2,3828.1,0.779]
[1754589457630,0.919,3828.1,3828.0,0.83397]
[1754589457834,2.3028,3828.1,3828.0,1.11767]
[1754589458039,2.3028,3828.1,3828.0,1.86737]
[1754589458238,2.3028,3828.1,3828.0,2.79717]
[1754589459241,1.8389,3828.1,3828.0,2.79717]
[1754589460840,0.919,3829.2,3828.7,1.30573]
[1754589461041,2.3028,3829.1,3829.0,1.30125]
[1754589461248,43.34775382,3829.1,3829.0,1.58495]
[1754589461448,43.34775382,3829.1,3829.0,2.33465]
[1754589462050,43.34775382,3829.1,3829.0,0.52225]
[1754589462550,2.3028,3829.0,3828.9,0.52225]
[1754589462848,2.54775382,3829.0,3828.9,0.52225]
[1754589463243,2.3028,3829.0,3828.9,0.52225]
[1754589464043,2.54781126,3829.0,3828.9,0.52225]
[1754589464246,2.5478727,3829.0,3828.9,0.52225]
[1754589464548,1.3315,3827.9,3827.8,2.79181]
[1754589464745,0.8616,3828.2,3828.1,0.52237]
[1754589464950,1.7457,3828.2,3828.1,2.79177]
[1754589465445,40.8,3828.2,3828.1,2.79177]
[1754589465854,1.35,3829.4,3829.3,0.5222]
[1754589466037,0.8841,3829.1,3829.0,1.3923]
[1754589466346,1.35,3828.3,3828.2,0.52236]
[1754589466548,2.2116,3828.3,3828.2,0.52236]
[1754589466848,43.0116,3828.3,3828.2,0.52236]
[1754589467243,43.0116,3828.3,3828.1,0.52236]
[1754589467450,2.2116,3828.2,3828.1,0.52236]
[1754589468650,2.2116,3828.2,3828.1,0.99116]
[1754589469550,2.2116,3828.2,3828.1,1.60196]
[1754589469746,1.7457,3828.2,3828.1,2.79176]
[1754589469942,0.2984,3828.2,3828.1,2.79176]
[1754589470245,40.8,3828.3,3828.2,2.2694]
[1754589470445,41.2474,3828.3,3828.2,2.2694]
[1754589470850,40.8,3828.3,3828.2,2.2694]
[1754589471248,41.6616,3828.3,3828.2,2.2694]
[1754589471652,41.2474,3828.3,3828.2,2.2694]
[1754589472050,40.8,3828.3,3828.2,2.2694]
[1754589476352,41.2474,3828.3,3828.2,2.2694]
[1754589476547,41.6616,3828.3,3828.2,1.3923]
[1754589476856,42.1284,3828.3,3828.2,1.8093]
[1754589477057,41.6616,3828.3,3828.2,2.2694]
[1754589477354,0.8841,3828.2,3828.1,1.13316]
[1754589477555,2.2125,3828.2,3828.1,1.55016]
[1754589477951,2.2125,3828.2,3828.1,1.86286]
[1754589478151,2.2125,3828.2,3828.1,2.33166]
[1754589478954,2.2125,3828.2,3828.1,2.79176]
[1754589479857,2.2125,3828.2,3828.1,2.33166]
[1754589480157,2.2125,3828.2,3828.1,0.99116]
[1754589480354,2.2125,3828.2,3828.1,0.52236]
[1754589480559,2.2125,3828.2,3828.1,0.99116]
[1754589480860,2.2125,3828.2,3828.1,0.52236]
[1754589481650,2.2125,3828.2,3828.1,0.99116]
[1754589481862,0.7458,3828.2,3828.1,2.79176]
[1754589482166,1.7457,3828.2,3828.1,2.79176]
[1754589482364,40.8,3828.3,3828.1,2.79176]
[1754589482565,40.8,3828.3,3828.2,2.2694]
[1754589482758,1.4080293,3830.0,3828.5,2.79172]
[1754589482969,0.8841,3829.5,3829.4,0.52219]
[1754589483154,43.0125,3829.5,3829.4,1.30059]
[1754589483360,43.25766898,3829.5,3829.4,2.79159]
[1754589483560,43.25766898,3829.5,3829.4,2.33149]
[1754589483761,43.25762572,3829.5,3829.4,2.33149]
[1754589485167,43.25762572,3829.5,3829.4,0.52219]
[1754589485873,43.25762572,3829.5,3829.4,1.60179]
[1754589486173,43.25762572,3829.5,3829.4,2.01879]
[1754589486671,43.0125,3829.5,3829.4,1.60179]
[1754589486863,43.25753265,3829.5,3829.4,1.30059]
[1754589487271,43.25752427,3829.5,3829.4,1.30059]
[1754589488277,43.0125,3829.5,3829.4,1.30059]
[1754589489777,43.0125,3829.5,3829.4,0.99099]
[1754589490373,43.25738547,3829.5,3829.4,0.52219]
[1754589490676,43.0125,3829.5,3829.4,0.52219]
[1754589491473,41.96,3829.5,3829.4,2.79159]
[1754589492082,40.8,3829.5,3829.4,2.79159]
[1754589493770,41.2336,3829.5,3829.4,2.79159]
[1754589493969,41.2336,3829.5,3829.4,2.33149]
[1754589494167,42.1424,3829.5,3829.4,2.33149]
[1754589494381,42.1424,3829.5,3829.4,1.60179]
[1754589494582,42.1424,3829.5,3829.4,1.0796]
[1754589495387,41.6856,3829.5,3829.4,2.2466]
[1754589496374,41.2336,3829.5,3829.4,2.2466]
[1754589496574,40.8,3829.5,3829.4,2.2466]
[1754589497273,1.4927,3829.8,3829.7,2.76186]
[1754589497679,42.2927,3829.8,3829.7,2.76186]
[1754589498978,40.8,3829.8,3829.7,2.76186]
[1754589500283,41.2336,3829.8,3829.7,2.76186]
[1754589500778,40.8,3829.8,3829.7,2.76186]
[1754589501187,41.2336,3829.8,3829.7,2.76186]
[1754589501982,41.6856,3829.8,3829.7,2.76186]
[1754589502886,41.2336,3829.8,3829.7,2.76186]
[1754589503281,40.8,3829.8,3829.7,2.76186]
[1754589505685,41.2336,3829.8,3829.7,2.76186]
[1754589505886,40.8,3829.8,3829.7,2.76186]
[1754589507991,40.8,3829.8,3829.4,1.30548]
[1754589507992,1.1932,3830.3,3830.2,2.76179]
[1754589508488,42.2927,3830.3,3830.2,2.76179]
[1754589511094,41.6856,3830.3,3830.2,2.76179]
[1754589513090,42.1385,3830.3,3830.2,1.59479]
[1754589513294,42.1385,3830.3,3830.2,2.01329]
[1754589513595,41.6856,3830.3,3830.2,2.76179]
[1754589514493,42.1385,3830.3,3830.2,2.76179]
[1754589514795,2.2352,3830.0,3829.9,0.4709]
[1754589515297,2.2352,3830.0,3829.9,1.29223]
[1754589515489,2.2352,3830.0,3829.9,2.01333]
[1754589515690,1.7823,3830.0,3829.9,2.76183]
[1754589516998,2.2352,3830.0,3829.9,2.30513]
[1754589517393,1.7823,3830.0,3829.9,2.76183]
[1754589521094,2.2352,3830.0,3829.9,2.76183]
[1754589522000,1.7823,3830.0,3829.9,2.76183]
[1754589523195,0.2995,3830.0,3829.9,1.88663]
[1754589523403,41.2182,3830.3,3830.2,2.225]
[1754589523598,41.6586,3830.3,3830.2,1.7682]
[1754589523793,42.1124,3830.3,3830.2,1.7682]
[1754589524002,42.1124,3830.3,3830.2,1.0108]
[1754589524399,42.1124,3830.3,3830.2,1.461]
[1754589525505,42.1124,3830.3,3830.2,1.0108]
[1754589526293,42.1124,3830.3,3830.2,1.461]
[1754589528496,0.8947,3830.2,3830.1,0.5221]
[1754589528698,0.8947,3830.2,3830.1,0.9503]
[1754589528699,2.2071,3830.2,3830.1,0.9503]
[1754589528893,2.2071,3830.2,3830.1,1.2464]
[1754589529095,2.2071,3830.2,3830.1,1.6966]
[1754589529500,2.2071,3830.2,3830.1,1.9831]
[1754589530507,2.2071,3830.2,3830.1,2.2903]
[1754589530701,2.2071,3830.2,3830.1,2.7471]
[1754589531601,1.7667,3830.2,3830.1,2.7471]
[1754589532002,2.2071,3830.2,3830.1,2.7471]
[1754589532407,0.8942,3830.1,3829.8,0.8784]
[1754589532603,2.2071,3829.9,3829.8,1.24644]
[1754589533100,43.0071,3829.9,3829.8,1.24644]
[1754589533299,43.0071,3829.9,3829.5,2.33064704]
[1754589533507,0.8947,3829.6,3829.5,3.28102704]
[1754589533702,2.2071,3829.6,3829.5,3.28102704]
[1754589534105,2.2071,3829.6,3829.5,0.95038]
[1754589534306,2.2071,3829.6,3829.5,3.57712704]
[1754589534499,2.2071,3829.6,3829.5,4.31382704]
[1754589534698,41.672,3829.9,3829.8,2.74714]
[1754589535298,41.2538,3829.9,3829.8,2.74714]
[1754589537312,41.672,3829.9,3829.8,2.74714]
[1754589537810,40.8,3829.9,3829.8,2.74714]
[1754589538019,41.2538,3829.9,3829.8,2.74714]
[1754589538310,41.672,3829.9,3829.8,2.74714]
[1754589538511,42.1124,3829.9,3829.8,0.95034]
[1754589538709,42.1124,3829.9,3829.8,1.53294]
[1754589538910,42.1124,3829.9,3829.8,2.43994]
[1754589539110,42.1124,3829.9,3829.8,2.74714]
[1754589539312,41.672,3829.9,3829.8,2.74714]
[1754589540417,41.672,3829.9,3829.8,1.98314]
[1754589540615,42.1124,3829.9,3829.8,2.74714]
[1754589540915,41.672,3829.9,3829.8,2.74714]
[1754589541211,42.1124,3829.9,3829.8,0.95034]
[1754589541417,2.2071,3829.8,3829.7,0.52215]
[1754589541714,2.2071,3829.8,3829.7,0.95035]
[1754589542718,2.2071,3829.8,3829.7,1.24645]
[1754589543312,2.2071,3829.8,3829.7,1.53295]
[1754589543606,2.2071,3829.8,3829.7,2.74715]
[1754589543813,1.7667,3829.8,3829.7,2.74715]
[1754589544115,0.7454,3829.8,3829.7,2.74715]
[1754589544320,1.4749,3829.8,3829.7,2.74715]
[1754589544508,1.7667,3829.8,3829.7,2.74715]
[1754589544909,2.2071,3829.8,3829.7,2.74715]
[1754589545314,1.7667,3829.8,3829.7,2.74715]
[1754589546918,1.4749,3829.8,3829.7,2.74715]
[1754589547408,40.8,3829.9,3829.7,1.41195]
[1754589547614,40.8,3829.9,3829.8,2.225]
[1754589548011,40.8,3829.9,3829.7,0.52215]
[1754589548214,1.7667,3829.8,3829.7,0.97235]
[1754589548517,1.7667,3829.8,3829.7,2.31895]
[1754589548718,1.7667,3829.8,3829.7,2.74715]
[1754589550216,1.4749,3829.8,3829.7,2.74715]
[1754589550416,1.7667,3829.8,3829.7,2.74715]
[1754589551709,1.4749,3829.8,3829.7,2.74715]
[1754589554822,1.7667,3829.8,3829.7,2.74715]
[1754589556226,2.184,3829.8,3829.7,2.74715]
[1754589557427,1.7667,3829.8,3829.7,2.37935]
[1754589557619,1.7667,3829.8,3829.7,2.66495]
[1754589557926,2.184,3829.8,3829.7,2.66495]
[1754589559728,1.7667,3829.8,3829.7,1.81855]
[1754589559927,2.184,3829.8,3829.7,1.95345]
[1754589560234,2.184,3829.8,3829.7,2.66495]
[1754589561924,1.7667,3829.8,3829.7,2.66495]
[1754589563832,1.1636,3829.8,3829.7,2.66495]
[1754589564535,1.4617,3829.8,3829.7,2.66495]
[1754589565039,1.7436,3829.8,3829.7,2.66495]
[1754589567934,2.1328,3829.6,3829.5,0.52218]
[1754589568129,1.5528,3829.5,3829.4,0.52219]
[1754589568429,2.1328,3829.5,3829.4,1.96579]
[1754589568743,0.7049,3829.5,3829.4,2.67729]
[1754589568934,1.7155,3829.5,3829.4,2.67729]
[1754589569135,59.5904,3829.9,3829.8,1.40124]
[1754589569333,41.8906459,3829.9,3829.8,2.67724]
[1754589569640,41.6454,3829.9,3829.8,2.67724]
[1754589570733,42.0627,3829.9,3829.8,2.67724]
[1754589570938,42.0627,3829.9,3829.8,0.52214]
[1754589571429,41.6454,3829.9,3829.8,2.25134]
[1754589571740,41.6454,3829.9,3829.8,2.67724]
[1754589572438,40.8,3829.9,3829.8,2.67724]
[1754589572639,41.2148,3829.9,3829.8,2.67724]
[1754589572839,41.6454,3829.9,3829.8,2.67724]
[1754589573635,40.8,3829.9,3829.8,2.67724]
[1754589574037,0.7049,3830.4,3830.3,1.40117]
[1754589574239,0.7049,3830.4,3830.3,2.67717]
[1754589574441,40.8,3830.4,3830.3,2.67717]
[1754589575541,41.6454,3830.4,3830.3,2.67717]
[1754589576437,40.8,3830.4,3830.3,2.67717]
[1754589577539,2.1328,3831.1,3831.0,0.52197]
[1754589577740,20.0738,3831.1,3831.0,0.95157]
[1754589577940,61.11885686,3831.1,3831.0,0.95157]
[1754589578837,60.70155686,3831.1,3831.0,2.67707]
[1754589579036,42.76055686,3831.1,3831.0,2.67707]
[1754589579240,60.70148475,3831.1,3831.0,2.67707]
[1754589579437,61.11878475,3831.1,3831.0,2.67707]
[1754589579638,61.11878475,3831.1,3831.0,2.25117]
[1754589579838,61.11878475,3831.1,3831.0,1.96557]
[1754589580339,60.70148475,3831.1,3831.0,2.67707]
[1754589581139,60.4565,3831.1,3831.0,2.67707]
[1754589581642,60.0259,3831.1,3831.0,2.67707]
[1754589581840,42.0849,3831.1,3831.0,2.67707]
[1754589582040,42.5155,3831.1,3831.0,2.67707]
[1754589582754,42.9328,3831.1,3831.0,2.67707]
[1754589583242,42.9328,3831.1,3831.0,2.25117]
[1754589583546,60.8708,3831.1,3831.0,0.95157]
[1754589583749,60.8708,3831.1,3831.0,0.52197]
[1754589584042,2.67688,3831.0,3830.9,0.52199]
[1754589585143,1.2997,3830.6,3830.4,0.52205]
[1754589585344,2.1549,3830.5,3830.4,0.52205]
[1754589586248,42.9549,3830.5,3830.4,0.96955]
[1754589586544,42.9549,3830.5,3830.4,0.4475]
[1754589586844,2.1549,3830.3,3830.2,0.96958]
[1754589587148,2.1549,3830.3,3830.2,1.99588]
[1754589587349,2.1549,3830.3,3830.2,2.67878]
[1754589587648,42.9549,3830.3,3830.2,2.67878]
[1754589588839,42.9549,3830.3,3830.2,2.1567]
[1754589589248,42.9549,3830.3,3830.2,1.4738]
[1754589590251,0.8552,3830.0,3829.9,1.4738]
[1754589590450,2.1549,3830.0,3829.9,1.0399]
[1754589590849,2.67701,3830.0,3829.9,0.4475]
[1754589591049,0.8552,3829.8,3829.7,0.96965]
[1754589591344,2.1549,3829.8,3829.7,1.99595]
[1754589591549,2.1549,3829.8,3829.7,2.1567]
[1754589594248,1.7464,3829.8,3829.7,2.1567]
[1754589594649,0.7206,3829.8,3829.7,2.1567]
[1754589594950,0.2812,3829.8,3829.7,2.1567]
[1754589595353,0.4518,3830.8,3830.3,0.4475]
[1754589595650,20.60992,3830.7,3830.6,1.7475]
[1754589595845,43.72157384,3830.7,3830.6,1.7475]
[1754589596545,43.72157384,3830.7,3830.6,0.4475]
[1754589597148,43.72157384,3830.7,3830.6,1.0399]
[1754589597348,43.72157384,3830.7,3830.6,1.4738]
[1754589597849,43.19955384,3830.7,3830.6,2.1567]
[1754589598049,42.9549,3830.7,3830.6,2.1567]
[1754589598251,42.5464,3830.7,3830.6,2.1567]
[1754589598449,42.9549,3830.7,3830.6,1.7475]
[1754589598637,42.9549,3830.7,3830.6,2.1567]
[1754589599039,42.9549,3830.7,3830.6,1.0399]
[1754589599849,2.67696,3830.4,3830.0,0.8431]
[1754589600043,1.4652,3830.2,3830.1,2.2313]
[1754589600238,0.8552,3830.2,3830.0,0.52211]
[1754589600443,17.931,3830.5,3830.0,0.52211]
[1754589600444,2.677,3830.1,3830.0,0.4475]
[1754589600650,1.7155,3830.0,3829.9,1.11452]
[1754589600953,0.52206,3830.5,3830.4,0.2912]
[1754589601144,1.7464,3830.5,3830.4,2.1567]
[1754589601344,1.307,3830.5,3830.4,2.1567]
[1754589601543,0.7206,3830.5,3830.4,2.1567]
[1754589601739,40.8,3830.7,3830.6,2.1567]
[1754589602148,41.6912,3830.7,3830.6,1.7475]
[1754589602352,41.6912,3830.7,3830.6,0.4475]
[1754589602650,2.1549,3830.4,3830.3,1.26076]
[1754589602851,40.8,3830.7,3830.0,1.11451]
[1754589602852,0.2884,3830.1,3830.0,1.11451]
[1754589603044,2.1549,3830.1,3830.0,0.2912]
[1754589603251,17.93,3830.4,3829.8,1.11454]
[1754589603252,2.1549,3829.9,3829.8,1.11454]
[1754589603452,0.52212,3830.0,3829.4,2.33064704]
[1754589603453,0.8552,3829.5,3829.4,2.33064704]
[1754589603654,42.0637,3829.5,3829.4,0.7387]
[1754589604045,41.6552,3829.5,3829.4,2.6789]
[1754589604242,42.0946,3829.5,3829.4,2.6789]
[1754589604642,40.8,3829.5,3829.4,2.6789]
[1754589605244,41.2394,3829.5,3829.4,1.0399]
[1754589605546,41.2394,3829.5,3829.4,2.1567]
[1754589605748,40.8,3829.5,3829.4,2.1567]
[1754589605949,41.2394,3829.5,3829.4,2.1567]
[1754589606350,40.8,3829.5,3829.4,2.1567]
[1754589606750,41.2394,3829.5,3829.4,2.1567]
[1754589607051,41.6912,3829.5,3829.4,2.1567]
[1754589607954,40.8,3829.5,3829.4,2.1567]
[1754589608453,42.0997,3829.5,3829.4,0.7387]
[1754589608749,42.0997,3829.5,3829.4,1.0399]
[1754589608956,41.6912,3829.5,3829.4,2.1567]
[1754589609153,40.8,3829.5,3829.4,2.1567]
[1754589609546,1.009,3829.9,3829.8,2.1567]
[1754589609749,1.7464,3829.9,3829.8,2.1567]
[1754589609955,42.5464,3829.9,3829.8,2.1567]
[1754589611256,18.45106,3830.5,3830.4,1.2753]
[1754589611559,1.7155,3830.5,3830.4,0.4475]
[1754589611958,1.7155,3830.5,3830.3,0.52206]
[1754589611959,0.8552,3830.5,3830.3,0.52206]
[1754589612157,42.5155,3830.4,3830.3,1.11446]
[1754589612357,42.107,3830.4,3830.3,1.54836]
[1754589612859,42.107,3830.4,3830.3,2.67876]
[1754589613259,42.5311,3830.4,3830.3,2.67876]
[1754589613463,42.5311,3830.4,3830.3,2.26956]
[1754589613660,60.4591,3830.4,3830.3,2.26956]
[1754589614062,42.5311,3830.4,3830.3,2.26956]
[1754589614364,60.4591,3830.4,3830.3,2.26956]
[1754589614560,60.4591,3830.4,3830.3,2.70446]
[1754589615157,60.4591,3830.4,3830.3,1.99586]
[1754589615360,60.8569,3830.4,3830.3,1.99586]
[1754589615559,60.4591,3830.4,3830.3,2.28286]
[1754589615761,2.1034,3830.3,3830.2,0.52208]
[1754589616064,2.1034,3830.3,3830.2,0.4195]
[1754589617465,2.1034,3830.1,3830.0,1.23431]
[1754589617665,19.6326,3830.1,3830.0,2.67691]
[1754589618364,19.6326,3830.1,3830.0,0.52211]
[1754589618660,20.0304,3830.1,3830.0,0.52211]
[1754589618861,20.0304,3830.1,3830.0,1.23431]
[1754589619166,19.6326,3830.1,3830.0,2.67691]
[1754589619956,1.7056,3830.1,3830.0,2.67691]
[1754589620271,1.7056,3830.1,3830.0,2.1548]
[1754589620465,1.7056,3830.1,3830.0,0.7122]
[1754589620762,2.1003,3830.1,3830.0,0.7122]
[1754589620967,2.1003,3830.1,3830.0,1.4329]
[1754589621566,1.7056,3830.1,3830.0,1.4329]
[1754589621765,1.7056,3830.1,3830.0,2.1548]
[1754589622562,40.8,3830.4,3830.0,2.1548]
[1754589622768,40.8,3830.4,3830.3,2.67687]
[1754589622967,41.2139,3830.4,3830.3,2.1548]
[1754589623164,41.2139,3830.4,3830.3,1.7199]
[1754589623365,42.0327,3830.4,3830.3,1.7199]
[1754589623574,42.0327,3830.4,3830.3,1.4329]
[1754589624066,59.563,3830.4,3830.3,2.1548]
[1754589624266,41.638,3830.4,3830.3,2.1548]
[1754589624967,40.8,3830.4,3830.3,2.1548]
[1754589625771,41.2241,3830.4,3830.3,2.1548]
[1754589628887,41.74616,3830.4,3830.3,2.1548]
[1754589629087,41.74616,3830.4,3829.9,1.7199]
[1754589629088,0.81652,3830.0,3829.9,1.7199]
[1754589629283,2.62242,3830.0,3829.9,0.4195]
[1754589630079,2.62242,3830.0,3829.9,0.7122]
[1754589630283,2.22772,3830.0,3829.9,1.7199]
[1754589630483,2.22772,3830.0,3829.9,2.1548]
[1754589631385,2.22772,3830.0,3829.9,1.7199]
[1754589631688,2.62242,3830.0,3829.9,1.7199]
[1754589632386,2.62242,3830.0,3829.9,1.0151]
[1754589632780,0.52218,3829.5,3829.4,2.33064704]
[1754589632984,1.78448,3829.5,3829.4,1.0151]
[1754589633190,1.78451,3829.3,3829.2,3.34574704]
[1754589633390,1.24071,3829.3,3829.2,2.1548]
[1754589633585,41.5185,3829.3,3829.2,2.1548]
[1754589634084,40.8,3829.3,3829.2,2.1548]
[1754589635389,41.2241,3829.3,3829.2,2.1548]
[1754589635589,40.8,3829.3,3829.2,2.1548]
[1754589636690,41.638,3829.3,3829.2,1.0151]
[1754589636889,42.0327,3829.3,3829.2,1.0151]
[1754589637091,42.0327,3829.3,3829.1,0.52223]
[1754589637092,0.8676,3829.1,3829.0,0.4178]
[1754589637293,2.62255,3829.0,3828.9,0.4195]
[1754589637487,2.22789,3828.7,3828.6,2.33064704]
[1754589637687,2.22789,3828.7,3828.2,0.4178]
[1754589637688,2.62259,3828.7,3828.4,2.75014704]
[1754589637895,1.7056,3828.5,3828.4,3.86637704]
[1754589638495,2.22792,3828.5,3828.4,3.34574704]
[1754589638797,2.62262,3828.5,3828.4,0.7122]
[1754589638992,43.42262,3828.5,3828.4,0.7122]
[1754589639805,42.9003,3828.5,3828.4,1.0151]
[1754589639996,42.9003,3828.5,3828.4,1.4329]
[1754589640391,42.9003,3828.5,3828.4,1.0151]
[1754589640594,42.9003,3828.5,3828.4,0.7122]
[1754589640795,0.8676,3828.2,3828.1,1.53577]
[1754589640991,2.1003,3828.2,3828.1,1.0134]
[1754589641196,2.1003,3828.2,3828.1,0.5956]
[1754589641503,2.1003,3828.0,3827.9,0.4195]
[1754589641998,1.7056,3828.0,3827.9,1.7199]
[1754589642191,1.7056,3828.0,3827.8,0.52241]
[1754589642398,2.1003,3827.9,3827.8,0.94191]
[1754589642591,2.1003,3827.9,3827.8,1.53751]
[1754589642796,2.1003,3827.9,3827.8,1.95531]
[1754589642996,1.7056,3827.9,3827.8,1.95531]
[1754589643200,42.5056,3827.9,3827.8,1.95531]
[1754589643796,42.5056,3827.9,3827.8,2.24311]
[1754589644506,40.8,3827.9,3827.8,2.63971]
[1754589644802,41.2184,3827.9,3827.8,2.63971]
[1754589646199,40.8,3827.9,3827.8,2.63971]
[1754589648302,0.9933,3828.6,3828.5,1.39612]
[1754589648505,1.69,3828.6,3828.5,2.24372]
[1754589648806,1.69,3828.6,3828.5,2.64032]
[1754589649206,0.2755,3828.6,3828.5,2.64032]
[1754589649405,0.9933,3828.9,3828.8,2.64028]
[1754589649903,0.9933,3828.9,3828.8,1.23168]
[1754589649904,42.222,3828.9,3828.8,1.23168]
[1754589650103,0.268,3828.6,3828.5,0.52231]
[1754589650410,2.0724,3828.6,3828.5,1.23171]
[1754589650811,2.0724,3828.6,3828.5,1.53101]
[1754589651011,1.69,3828.6,3828.5,1.81881]
[1754589651212,1.69,3828.6,3828.5,2.64031]
[1754589651503,40.8,3828.9,3828.8,0.52228]
[1754589651708,41.2287,3828.9,3828.8,2.64028]
[1754589652103,41.6471,3828.9,3828.8,2.64028]
[1754589652303,41.2184,3828.9,3828.8,2.64028]
[1754589652508,40.8,3828.9,3828.8,2.64028]
[1754589654503,41.2184,3828.9,3828.8,2.64028]
[1754589654902,41.6471,3828.9,3828.8,2.64028]
[1754589655205,41.6471,3828.9,3828.8,2.24368]
[1754589655802,41.6471,3828.9,3828.8,2.64028]
[1754589658209,40.8,3828.9,3828.8,2.64028]
[1754589658410,40.8,3828.9,3828.5,1.30578]
[1754589658411,1.2613,3829.5,3829.4,1.79259]
[1754589658610,1.2716,3829.8,3829.7,1.39595]
[1754589658805,42.49,3829.8,3829.7,2.64015]
[1754589659311,42.49,3829.8,3829.7,2.24355]
[1754589659505,42.8724,3829.8,3829.7,1.4336]
[1754589659707,1.2613,3829.5,3829.4,0.52218]
[1754589659905,2.0724,3829.5,3829.4,0.94488]
[1754589660307,2.0724,3829.5,3829.3,0.5222]
[1754589660308,1.36509,3829.5,3829.3,0.5222]
[1754589660508,2.0724,3829.4,3829.3,0.5222]
[1754589660905,2.0724,3829.4,3828.7,19.2287]
[1754589660906,2.0724,3829.2,3828.7,1.3057]
[1754589661107,1.69,3828.8,3828.7,1.53099]
[1754589661308,1.69,3828.8,3828.7,1.95589]
[1754589661506,1.69,3828.8,3828.7,2.24369]
[1754589661701,1.69,3828.8,3828.7,2.64029]
[1754589662308,42.49,3828.8,3828.7,2.64029]
[1754589663305,42.49,3828.8,3828.7,1.95589]
[1754589663508,42.49,3828.8,3828.7,2.24369]
[1754589663720,42.8724,3828.8,3828.7,2.24369]
[1754589663915,42.8724,3828.8,3828.7,0.4227]
[1754589664209,1.69,3828.2,3828.1,0.4227]
[1754589664408,0.8429,3828.0,3827.9,0.94509]
[1754589664608,2.0724,3828.0,3827.9,0.4227]
[1754589665004,42.8724,3828.0,3827.9,0.4227]
[1754589665609,42.49,3828.0,3827.9,1.7214]
[1754589665811,42.49,3828.0,3827.9,2.118]
[1754589666513,42.49,3828.0,3827.9,1.7214]
[1754589666714,42.49,3828.0,3827.9,2.118]
[1754589667606,42.0613,3828.0,3827.9,2.118]
[1754589667805,40.8,3828.0,3827.9,2.118]
[1754589668119,19.613,3828.9,3828.8,1.39608]
[1754589668319,2.34169135,3828.9,3828.8,2.64028]
[1754589668514,2.0971,3828.9,3828.8,2.64028]
[1754589668715,2.0971,3828.9,3828.8,0.2867]
[1754589669013,1.8216,3828.8,3828.7,0.52228]
[1754589669220,2.0971,3828.8,3828.7,0.52228]
[1754589669514,1.36519,3828.8,3828.6,0.5223]
[1754589669715,2.0971,3828.0,3827.9,1.1084]
[1754589669916,2.0971,3828.0,3827.9,1.5311]
[1754589670114,2.0971,3828.0,3827.9,1.1084]
[1754589670622,2.0971,3828.0,3827.9,1.956]
[1754589670917,2.0971,3828.0,3827.9,2.2438]
[1754589671118,42.8971,3828.0,3827.9,2.2438]
[1754589671515,42.8971,3828.0,3827.9,0.5224]
[1754589672219,0.5749,3827.9,3827.8,0.52241]
[1754589672419,2.0971,3827.9,3827.8,0.52241]
[1754589672714,2.0971,3827.9,3827.5,0.4227]